Workbook

Sheet 1 к 1 сем
B2: КАЛЕНДАРНЫЙ УЧЕБНЫЙ ГРАФИК, 2020-2021 учебный год, кл.рук.Андреева Н.В.
B3: 44.02.02 Преподавание в начальных классах, 1 курс 1 семестр
C5: 31\08 | D5: 07\09 | E5: 14\09 | F5: 21\09 | G5: 28\09 | H5: 05\10 | I5: 12\10 | J5: 19\10 | K5: 26\10 | L5: 02\11 | M5: 09\11 | N5: 16\11 | O5: 23\11 | P5: 30\11 | Q5: 07\12 | R5: 14\12 | S5: 21\12 | T5: всего часов | U5: к оплате 1 семестр | V5: к оплате 2 семестр
B6: дисциплины/недели | C6: 1 | D6: 2 | E6: 3 | F6: 4 | G6: 5 | H6: 6 | I6: 7 | J6: 8 | K6: 9 | L6: 10 | M6: 11 | N6: 12 | O6: 13 | P6: 14 | Q6: 15 | R6: 16 | S6: 17
B7: Иностранный язык, 1 гр ВГЗ | C7: 6 | D7: 6 | E7: 6 | F7: 6 | G7: 6 | H7: 6 | I7: 6 | J7: 6 | K7: 3 | T7: =SUM(C7:S7) -> 51 | U7: 51 | V7: 66
B8: Иностранный язык, 2 гр ФГФ | T8: =SUM(C8:S8) -> 0 | U8: 51 | V8: 66
B9: Математика ККВ | C9: 4 | D9: 4 | E9: 4 | F9: 4 | G9: 4 | H9: 4 | I9: 4 | J9: 4 | K9: 4 | L9: 4 | M9: 4 | N9: 4 | O9: 4 | P9: 4 | Q9: 4 | R9: 4 | S9: 4 | T9: 68 | U9: 68 | V9: 88
B10: Информатика и ИКТ, 1 гр АНВ | C10: 1 | D10: 1 | E10: 1 | F10: 1 | G10: 1 | H10: 1 | I10: 1 | J10: 1 | K10: 1 | L10: 1 | M10: 1 | N10: 1 | O10: 1 | P10: 1 | Q10: 1 | R10: 1 | S10: 1 | T10: 17 | U10: 17 | V10: 44
B11: Информатика и ИКТ, 2 гр АНВ | T11: 0 | U11: 17 | V11: 44
B12: География ГХХ | C12: 2 | D12: 2 | E12: 2 | F12: 2 | G12: 2 | H12: 2 | I12: 2 | J12: 2 | K12: 2 | L12: 2 | M12: 2 | N12: 2 | O12: 2 | P12: 2 | Q12: 2 | R12: 2 | S12: 2 | T12: 34 | U12: 34 | V12: 42
B13: естествознание (физика) ККВ | C13: 1 | D13: 1 | E13: 1 | F13: 1 | G13: 1 | H13: 1 | I13: 1 | J13: 1 | K13: 1 | L13: 1 | M13: 1 | N13: 1 | O13: 1 | P13: 1 | Q13: 1 | R13: 1 | S13: 1 | T13: 17 | U13: 17 | V13: 13
B14: естествознание (химия, биология) ГХХ | C14: 2 | D14: 2 | E14: 2 | F14: 2 | G14: 2 | H14: 2 | I14: 2 | J14: 2 | K14: 2 | L14: 2 | M14: 2 | N14: 2 | O14: 2 | P14: 2 | Q14: 2 | R14: 2 | S14: 2 | T14: 34 | U14: 34 | V14: 44
B15: Физическая культура ВЛФ | C15: 3 | D15: 3 | E15: 3 | F15: 3 | G15: 3 | H15: 3 | I15: 3 | J15: 3 | K15: 3 | L15: 3 | M15: 3 | N15: 3 | O15: 3 | P15: 3 | Q15: 3 | R15: 3 | S15: 3 | T15: 51 | U15: 51 | V15: 66
B16: ОБЖ ГЛХ | C16: 2 | D16: 2 | E16: 2 | F16: 2 | G16: 2 | H16: 2 | I16: 2 | J16: 2 | K16: 2 | L16: 2 | M16: 2 | N16: 2 | O16: 2 | P16: 2 | Q16: 2 | R16: 2 | S16: 2 | T16: 34 | U16: 34 | V16: 36
B17: Русский язык ХВЮ | C17: 2 | D17: 2 | E17: 2 | F17: 2 | G17: 2 | H17: 2 | I17: 2 | J17: 2 | K17: 2 | L17: 2 | M17: 2 | N17: 2 | O17: 2 | P17: 2 | Q17: 2 | R17: 2 | S17: 2 | T17: 34 | U17: 34 | V17: 44
B18: Литература ХВЮ | C18: 2 | D18: 2 | E18: 2 | F18: 2 | G18: 2 | H18: 2 | I18: 2 | J18: 2 | K18: 2 | L18: 2 | M18: 2 | N18: 2 | O18: 2 | P18: 2 | Q18: 2 | R18: 2 | S18: 2 | T18: 34 | U18: 34 | V18: 44
B19: История ГЕС | C19: 2 | D19: 2 | E19: 2 | F19: 2 | G19: 2 | H19: 2 | I19: 2 | J19: 2 | K19: 2 | L19: 2 | M19: 2 | N19: 2 | O19: 2 | P19: 2 | Q19: 2 | R19: 2 | S19: 2 | T19: 34 | U19: 34 | V19: 44
B20: Обществознание БНА | K20: 3 | L20: 6 | M20: 6 | N20: 6 | O20: 6 | P20: 6 | Q20: 6 | R20: 6 | S20: 6 | T20: 51 | U20: 51 | V20: 66
B21: Астрономия АНВ | C21: 1 | D21: 1 | E21: 1 | F21: 1 | G21: 1 | H21: 1 | I21: 1 | J21: 1 | K21: 1 | L21: 1 | M21: 1 | N21: 1 | O21: 1 | P21: 1 | Q21: 1 | R21: 1 | S21: 1 | T21: 17 | U21: 17 | V21: 19
B22: Родная литература ХГМ | C22: 1 | D22: 1 | E22: 1 | F22: 1 | G22: 1 | H22: 1 | I22: 1 | J22: 1 | K22: 1 | L22: 1 | M22: 1 | N22: 1 | O22: 1 | P22: 1 | Q22: 1 | R22: 1 | S22: 1 | T22: 17 | U22: 17 | V22: 22
B23: Родная литература ШГМ | T23: 0 | U23: 17 | V23: 22
B24: Искусство КАФ | C24: 1 | D24: 1 | E24: 1 | F24: 1 | G24: 1 | H24: 1 | I24: 1 | J24: 1 | K24: 1 | L24: 1 | M24: 1 | N24: 1 | O24: 1 | P24: 1 | Q24: 1 | R24: 1 | S24: 1 | T24: 17 | U24: 17 | V24: 22
B25: Язык и культура Татарстана ХГМ | C25: 2 | D25: 2 | E25: 2 | F25: 2 | G25: 2 | H25: 2 | I25: 2 | J25: 2 | K25: 2 | L25: 2 | M25: 2 | N25: 2 | O25: 2 | P25: 2 | Q25: 2 | R25: 2 | S25: 2 | T25: 34 | U25: 34 | V25: 22
B26: Основы муз. грам. , 1 гр ЕСГ | C26: 2 | D26: 2 | E26: 2 | F26: 2 | G26: 2 | H26: 2 | I26: 2 | J26: 2 | K26: 2 | L26: 2 | M26: 2 | N26: 2 | O26: 2 | P26: 2 | Q26: 2 | R26: 2 | S26: 2 | T26: 34 | U26: 34 | V26: 44
B27: Основы муз. грам., 2 гр ЕСГ | T27: 0 | U27: 34 | V27: 44
B28: Основы ИЗО грамотности, 1 гр АСВ | C28: 2 | D28: 2 | E28: 2 | F28: 2 | G28: 2 | H28: 2 | I28: 2 | J28: 2 | K28: 2 | L28: 2 | M28: 2 | N28: 2 | O28: 2 | P28: 2 | Q28: 2 | R28: 2 | S28: 2 | T28: 34 | U28: 34 | V28: 44
B29: Основы ИЗО грамотности, 2 гр АСВ | T29: 0 | U29: 34 | V29: 44
C30: =SUM(C7:C29) -> 36 | D30: =SUM(D7:D29) -> 36 | E30: 36 | F30: 36 | G30: 36 | H30: 36 | I30: 36 | J30: 36 | K30: 36 | L30: 36 | M30: 36 | N30: 36 | O30: 36 | P30: 36 | Q30: 36 | R30: 36 | S30: 36 | T30: =SUM(T7:T29) -> 612 | U30: =SUM(U7:U29) -> 765 | V30: =SUM(V7:V29) -> 990 | W30: ХОМ - 44
V32: 1034
U34: 1799

Sheet 1 к 2 с
B1: КАЛЕНДАРНЫЙ УЧЕБНЫЙ ГРАФИК, 2020-2021 учебный год, кл.рук.Андреева Н.В.
B2: 44.02.02. Преподавание в начальных классах, 1 курс 2 семестр
B4: даты: | C4: 12\01 | D4: 19\01 | E4: 26\01 | F4: 02\02 | G4: 09\02 | H4: 16\02 | I4: 23\02 | J4: 01\03 | K4: 08\03 | L4: 15\03 | M4: 22\03 | N4: 29\03 | O4: 05\04 | P4: 12\04 | Q4: 19\04 | R4: 26\04 | S4: 03\05 | T4: 10\05 | U4: 17\05 | V4: 24\05 | W4: 31\05 | X4: 07\06 | Y4: всего часов
B5: дисциплины/недели | C5: 1 | D5: 2 | E5: 3 | F5: 4 | G5: 5 | H5: 6 | I5: 7 | J5: 8 | K5: 9 | L5: 10 | M5: 11 | N5: 12 | O5: 13 | P5: 14 | Q5: 15 | R5: 16 | S5: 17 | T5: 18 | U5: 19 | V5: 20 | W5: 21 | X5: 22
B6: Иностранный язык ФГФ | C6: 3 | D6: 3 | E6: 3 | F6: 3 | G6: 3 | H6: 3 | I6: 3 | J6: 3 | K6: 3 | L6: 3 | M6: 3 | N6: 3 | O6: 3 | P6: 3 | Q6: 3 | R6: 3 | S6: 3 | T6: 3 | U6: 3 | V6: 3 | W6: 3 | X6: 3 | Y6: 66
B7: Иностранный язык ВГЗ
B8: Математика ККВ | C8: 4 | D8: 4 | E8: 4 | F8: 4 | G8: 4 | H8: 4 | I8: 4 | J8: 4 | K8: 4 | L8: 4 | M8: 4 | N8: 4 | O8: 4 | P8: 4 | Q8: 4 | R8: 4 | S8: 4 | T8: 4 | U8: 4 | V8: 4 | W8: 4 | X8: 4 | Y8: 88
B9: Информатика, 1 гр АНВ | C9: 2 | D9: 2 | E9: 2 | F9: 2 | G9: 2 | H9: 2 | I9: 2 | J9: 2 | K9: 2 | L9: 2 | M9: 2 | N9: 2 | O9: 2 | P9: 2 | Q9: 2 | R9: 2 | S9: 2 | T9: 2 | U9: 2 | V9: 2 | W9: 2 | X9: 2 | Y9: =SUM(C9:X9) -> 44
B10: Информатика, 2 гр
B11: География ГХХ | C11: 2 | D11: 2 | E11: 2 | F11: 2 | G11: 2 | H11: 2 | I11: 2 | J11: 2 | K11: 2 | L11: 2 | M11: 2 | N11: 2 | O11: 2 | P11: 2 | Q11: 2 | R11: 2 | S11: 2 | T11: 2 | U11: 2 | V11: 2 | W11: 1 | X11: 1 | Y11: 42
B12: физика ККВ | C12: 1 | D12: 1 | E12: 1 | F12: 1 | G12: 1 | H12: 1 | I12: 1 | J12: 1 | K12: 1 | L12: 1 | M12: 1 | N12: 1 | O12: 1 | Y12: 13
B13: химия, биология ГХХ | C13: 2 | D13: 2 | E13: 2 | F13: 2 | G13: 2 | H13: 2 | I13: 2 | J13: 2 | K13: 2 | L13: 2 | M13: 2 | N13: 2 | O13: 2 | P13: 2 | Q13: 2 | R13: 2 | S13: 2 | T13: 2 | U13: 2 | V13: 2 | W13: 2 | X13: 2 | Y13: 44
B14: Физкультура ВЛФ | C14: 3 | D14: 3 | E14: 3 | F14: 3 | G14: 3 | H14: 3 | I14: 3 | J14: 3 | K14: 3 | L14: 3 | M14: 3 | N14: 3 | O14: 3 | P14: 3 | Q14: 3 | R14: 3 | S14: 3 | T14: 3 | U14: 3 | V14: 3 | W14: 3 | X14: 3 | Y14: 66
B15: ОБЖ ГЛХ | C15: 1 | D15: 1 | E15: 1 | F15: 1 | G15: 1 | H15: 1 | I15: 1 | J15: 1 | K15: 1 | L15: 1 | M15: 1 | N15: 1 | O15: 1 | P15: 2 | Q15: 2 | R15: 2 | S15: 2 | T15: 2 | U15: 2 | V15: 3 | W15: 4 | X15: 4 | Y15: =SUM(C15:X15) -> 36
B16: Русский язык ХВЮ | C16: 2 | D16: 2 | E16: 2 | F16: 2 | G16: 2 | H16: 2 | I16: 2 | J16: 2 | K16: 2 | L16: 2 | M16: 2 | N16: 2 | O16: 2 | P16: 2 | Q16: 2 | R16: 2 | S16: 2 | T16: 2 | U16: 2 | V16: 2 | W16: 2 | X16: 2 | Y16: 44
B17: Литература ХВЮ | C17: 2 | D17: 2 | E17: 2 | F17: 2 | G17: 2 | H17: 2 | I17: 2 | J17: 2 | K17: 2 | L17: 2 | M17: 2 | N17: 2 | O17: 2 | P17: 2 | Q17: 2 | R17: 2 | S17: 2 | T17: 2 | U17: 2 | V17: 2 | W17: 2 | X17: 2 | Y17: 44
B18: История ГЕС | C18: 2 | D18: 2 | E18: 2 | F18: 2 | G18: 2 | H18: 2 | I18: 2 | J18: 2 | K18: 2 | L18: 2 | M18: 2 | N18: 2 | O18: 2 | P18: 2 | Q18: 2 | R18: 2 | S18: 2 | T18: 2 | U18: 2 | V18: 2 | W18: 2 | X18: 2 | Y18: 44
B19: Обществознание ГЕС | C19: 3 | D19: 3 | E19: 3 | F19: 3 | G19: 3 | H19: 3 | I19: 3 | J19: 3 | K19: 3 | L19: 3 | M19: 3 | N19: 3 | O19: 3 | P19: 3 | Q19: 3 | R19: 3 | S19: 3 | T19: 3 | U19: 3 | V19: 3 | W19: 3 | X19: 3 | Y19: 66
B20: Астрономия АНВ | C20: 1 | D20: 1 | E20: 1 | F20: 1 | G20: 1 | H20: 1 | I20: 1 | J20: 1 | K20: 1 | L20: 1 | M20: 1 | N20: 1 | O20: 1 | P20: 1 | Q20: 1 | R20: 1 | S20: 1 | T20: 1 | U20: 1 | Y20: =SUM(C20:X20) -> 19
B21: Родная литература, 1 гр ШГМ | C21: 1 | D21: 1 | E21: 1 | F21: 1 | G21: 1 | H21: 1 | I21: 1 | J21: 1 | K21: 1 | L21: 1 | M21: 1 | N21: 1 | O21: 1 | P21: 1 | Q21: 1 | R21: 1 | S21: 1 | T21: 1 | U21: 1 | V21: 1 | W21: 1 | X21: 1 | Y21: 22
B22: Родная литература, 2 гр ХГМ
B23: Искусство КАФ | C23: 1 | D23: 1 | E23: 1 | F23: 1 | G23: 1 | H23: 1 | I23: 1 | J23: 1 | K23: 1 | L23: 1 | M23: 1 | N23: 1 | O23: 1 | P23: 1 | Q23: 1 | R23: 1 | S23: 1 | T23: 1 | U23: 1 | V23: 1 | W23: 1 | X23: 1 | Y23: 22
B24: Язык и культура Тат. ХГМ | C24: 1 | D24: 1 | E24: 1 | F24: 1 | G24: 1 | H24: 1 | I24: 1 | J24: 1 | K24: 1 | L24: 1 | M24: 1 | N24: 1 | O24: 1 | P24: 1 | Q24: 1 | R24: 1 | S24: 1 | T24: 1 | U24: 1 | V24: 1 | W24: 1 | X24: 1 | Y24: 22
B25: ОМГ, 1 гр ГФА | C25: 2 | D25: 2 | E25: 2 | F25: 2 | G25: 2 | H25: 2 | I25: 2 | J25: 2 | K25: 2 | L25: 2 | M25: 2 | N25: 2 | O25: 2 | P25: 2 | Q25: 2 | R25: 2 | S25: 2 | T25: 2 | U25: 2 | V25: 2 | W25: 2 | X25: 2 | Y25: 44
B26: ОМГ, 2 гр
B27: ОИГ, 1 гр АСВ | C27: 2 | D27: 2 | E27: 2 | F27: 2 | G27: 2 | H27: 2 | I27: 2 | J27: 2 | K27: 2 | L27: 2 | M27: 2 | N27: 2 | O27: 2 | P27: 2 | Q27: 2 | R27: 2 | S27: 2 | T27: 2 | U27: 2 | V27: 2 | W27: 2 | X27: 2 | Y27: 44
B28: ОИГ, 2 гр
B29: ХОМ, 1 гр МТМ | C29: 1 | D29: 1 | E29: 1 | F29: 1 | G29: 1 | H29: 1 | I29: 1 | J29: 1 | K29: 1 | L29: 1 | M29: 1 | N29: 1 | O29: 1 | P29: 1 | Q29: 1 | R29: 1 | S29: 1 | T29: 1 | U29: 1 | V29: 1 | W29: 1 | X29: 1 | Y29: 22
B30: ХОМ, 2 гр
C31: =SUM(C6:C29) -> 36 | D31: =SUM(D6:D29) -> 36 | E31: 36 | F31: 36 | G31: 36 | H31: 36 | I31: 36 | J31: 36 | K31: 36 | L31: 36 | M31: 36 | N31: 36 | O31: 36 | P31: 36 | Q31: 36 | R31: 36 | S31: 36 | T31: 36 | U31: 36 | V31: 36 | W31: 36 | X31: 36

Sheet 2 к 3 с
A2: КАЛЕНДАРНЫЙ УЧЕБНЫЙ ГРАФИК, 2021-2022 учебный год, кл.рук.Андреева Н.В.
A3: 44.02.02 Преподавание в начальных классах, 2 курс 3 семестр
B4: 2021-09-01 | C4: 2021-09-08 | D4: 2021-09-15 | E4: 2021-09-22 | F4: 2021-09-29 | G4: 2021-10-06 | H4: 2021-10-13 | I4: 2021-10-20 | J4: 2021-10-27 | K4: 2021-11-03 | L4: 2021-11-10 | M4: 2021-11-17 | N4: 2021-11-24 | O4: 2021-12-01 | P4: 2021-12-08 | Q4: 2021-12-15 | R4: 2021-12-22 | S4: всего часов | T4: оплате 1 семестр | U4: оплате 2 семестр
A5: дисциплины/недели | B5: 1 | C5: 2 | D5: 3 | E5: 4 | F5: 5 | G5: 6 | H5: 7 | I5: 8 | J5: 9 | K5: 10 | L5: 11 | M5: 12 | N5: 13 | O5: 14 | P5: 15 | Q5: 16 | R5: 17
A6: Русский язык ХВЮ | B6: 1 | C6: 1 | D6: 1 | E6: 1 | F6: 1 | G6: 1 | H6: 1 | I6: 1 | J6: 1 | K6: 1 | L6: 1 | M6: 1 | N6: 1 | O6: 1 | P6: 1 | Q6: 1 | R6: 1 | S6: =SUM(B6:R6) -> 17 | T6: 17 | U6: 22
A7: Литература ХВЮ | B7: 3 | C7: 3 | D7: 3 | E7: 3 | F7: 3 | G7: 3 | H7: 3 | I7: 3 | J7: 3 | K7: 3 | L7: 3 | M7: 3 | N7: 3 | O7: 3 | P7: 3 | Q7: 3 | R7: 3 | S7: =SUM(B7:R7) -> 51 | T7: 51 | U7: 66
A8: История ГЕС | B8: 2 | C8: 2 | D8: 2 | E8: 2 | F8: 2 | G8: 2 | H8: 2 | I8: 2 | J8: 2 | K8: 2 | L8: 2 | M8: 2 | N8: 2 | O8: 2 | P8: 2 | Q8: 2 | R8: 2 | S8: 34 | T8: 34 | U8: 44
A9: Психология общения ЮЕА | B9: 3 | C9: 3 | D9: 3 | E9: 3 | F9: 3 | G9: 3 | H9: 3 | I9: 3 | J9: 3 | K9: 3 | L9: 3 | M9: 3 | N9: 3 | O9: 3 | P9: 3 | Q9: 3 | S9: 48 | T9: 48 | U9: 0
A10: Иностранный язык, 1 гр ВГЗ | B10: 2 | C10: 2 | D10: 2 | E10: 2 | F10: 2 | G10: 2 | H10: 2 | I10: 2 | J10: 2 | K10: 2 | L10: 2 | M10: 2 | N10: 2 | O10: 2 | P10: 2 | Q10: 2 | S10: 32 | T10: 32 | U10: 23
A11: Иностранный язык, 2 гр ФГФ | S11: 0 | T11: 32 | U11: 23
A12: Физическая культура ВЛФ | B12: 2 | C12: 2 | D12: 2 | E12: 2 | F12: 2 | G12: 2 | H12: 2 | I12: 2 | J12: 2 | K12: 2 | L12: 2 | M12: 2 | N12: 2 | O12: 2 | P12: 2 | Q12: 2 | R12: 2 | S12: 34 | T12: 34 | U12: 46
A13: Язык и культура Татарстана ХГМ | B13: 1 | C13: 1 | D13: 1 | E13: 1 | F13: 1 | G13: 1 | H13: 1 | I13: 1 | J13: 1 | K13: 1 | L13: 1 | M13: 1 | N13: 1 | O13: 1 | P13: 1 | Q13: 1 | R13: 1 | S13: 17 | T13: 17 | U13: 23
A14: Математика ККВ | B14: 1 | C14: 1 | D14: 1 | E14: 1 | F14: 1 | G14: 1 | H14: 1 | I14: 1 | J14: 1 | K14: 1 | L14: 1 | M14: 1 | N14: 1 | O14: 1 | P14: 1 | Q14: 1 | R14: 6 | S14: 22 | T14: 22 | U14: 26
A15: Информатика, ИКТ, 1гр АНВ | B15: 2 | C15: 2 | D15: 2 | E15: 2 | F15: 2 | G15: 2 | H15: 2 | I15: 2 | J15: 2 | K15: 2 | L15: 2 | M15: 2 | N15: 2 | O15: 2 | P15: 2 | Q15: 2 | R15: 2 | S15: 34 | T15: 34 | U15: 46
A16: Информатика, ИКТ, 2гр АНВ | S16: 0 | T16: 34 | U16: 46
A17: Педагогика ГГМ | B17: 1 | C17: 1 | D17: 1 | E17: 1 | F17: 1 | G17: 1 | H17: 1 | I17: 1 | J17: 1 | K17: 1 | L17: 1 | M17: 1 | N17: 1 | O17: 1 | P17: 1 | Q17: 1 | R17: 1 | S17: 17 | T17: 17 | U17: 46
A18: Психология ГЛР | B18: 2 | C18: 2 | D18: 2 | E18: 2 | F18: 2 | G18: 2 | H18: 2 | I18: 2 | J18: 2 | K18: 2 | L18: 2 | M18: 2 | N18: 2 | O18: 2 | P18: 2 | Q18: 2 | R18: 2 | S18: 34 | T18: 34 | U18: 46
A19: Анатомия МММ | B19: 2 | C19: 2 | D19: 2 | E19: 2 | F19: 2 | G19: 2 | H19: 2 | I19: 2 | J19: 2 | K19: 2 | L19: 2 | M19: 2 | N19: 2 | O19: 2 | P19: 2 | Q19: 2 | R19: 2 | S19: 34 | T19: 34 | U19: 42
A20: Основы муз.грам, 1 гр ГФА | B20: 2 | C20: 2 | D20: 2 | E20: 2 | F20: 2 | G20: 2 | H20: 2 | I20: 2 | J20: 2 | K20: 2 | L20: 2 | M20: 2 | N20: 2 | O20: 2 | P20: 2 | Q20: 2 | R20: 2 | S20: 34 | T20: 34 | U20: 23
A21: Основы муз.грам, 2 гр ГФА | S21: 0 | T21: 34 | U21: 23
A22: Основы изо грам, 1 гр АСВ | B22: 2 | C22: 2 | D22: 2 | E22: 2 | F22: 2 | G22: 2 | H22: 2 | I22: 2 | J22: 2 | K22: 2 | L22: 2 | M22: 2 | N22: 2 | O22: 2 | P22: 2 | Q22: 2 | R22: 2 | S22: 34 | T22: 34 | U22: 23
A23: Основы изо грам, 2 гр АСВ | S23: 0 | T23: 34 | U23: 23
A24: ХОМ, 1 гр ШАА | B24: 2 | C24: 2 | D24: 2 | E24: 2 | F24: 2 | G24: 2 | H24: 2 | I24: 2 | J24: 2 | K24: 2 | L24: 2 | M24: 2 | N24: 2 | O24: 2 | P24: 2 | Q24: 2 | R24: 2 | S24: 34 | T24: 34 | U24: 46
A25: ХОМ, 2 гр ШАА | S25: 0 | T25: 34 | U25: 46
A26: МДК.01.01. СРФ | B26: 4 | C26: 4 | D26: 4 | E26: 4 | F26: 4 | G26: 4 | H26: 4 | I26: 4 | J26: 4 | K26: 4 | L26: 4 | M26: 4 | N26: 4 | O26: 4 | P26: 4 | Q26: 4 | R26: 4 | S26: 68 | T26: 68 | U26: 46
A27: МДК.02.01. ШАА | B27: 2 | C27: 2 | D27: 2 | E27: 2 | F27: 2 | G27: 2 | H27: 2 | I27: 2 | J27: 2 | K27: 2 | L27: 2 | M27: 2 | N27: 2 | O27: 2 | P27: 2 | Q27: 2 | R27: 2 | S27: 34 | T27: 34 | U27: 69
A28: МДК.02.02. ШАА | B28: 2 | C28: 2 | D28: 2 | E28: 2 | F28: 2 | G28: 2 | H28: 2 | I28: 2 | J28: 2 | K28: 2 | L28: 2 | M28: 2 | N28: 2 | O28: 2 | P28: 2 | Q28: 2 | R28: 2 | S28: 34 | T28: 34 | U28: 54 | V28: 01.06. - 23
B29: =SUM(B6:B28) -> 36 | C29: =SUM(C6:C28) -> 36 | D29: 36 | E29: 36 | F29: 36 | G29: 36 | H29: 36 | I29: 36 | J29: 36 | K29: 36 | L29: 36 | M29: 36 | N29: 36 | O29: 36 | P29: 36 | Q29: 36 | R29: 36 | S29: =SUM(S6:S28) -> 612 | T29: =SUM(T6:T28) -> 780 | U29: =SUM(U6:U28) -> 852 | V29: 01.07. - 23
V30: 01.08.- 23
V31: 03.01. - 46
V32: УП.02 - 72
V33: УП.03.01 - 72
U34: 1111
T36: 1891

Sheet 2 к 4 с
B2: КАЛЕНДАРНЫЙ УЧЕБНЫЙ ГРАФИК, 2021-2022 учебный год, кл.рук.Андреева Н.В.
B3: 44.02.02. Преподавание в начальных классах, 2 курс 4 семестр
B4: дата: | C4: 2022-01-12 | D4: 2022-01-19 | E4: 2022-01-26 | F4: 2022-02-02 | G4: 2022-02-09 | H4: 2022-02-16 | I4: 2022-02-23 | J4: 2022-03-02 | K4: 2022-03-09 | L4: 2022-03-16 | M4: 2022-03-23 | N4: 2022-03-30 | O4: 2022-04-06 | P4: 2022-04-13 | Q4: 2022-04-20 | R4: 2022-04-27 | S4: 2022-05-04 | T4: 2022-05-11 | U4: 2022-05-18 | V4: 2022-05-25 | W4: 2022-06-01 | X4: 2022-06-08 | Y4: 2022-06-15 | Z4: всего часов
B5: дисциплины/недели | C5: 1 | D5: 2 | E5: 3 | F5: 4 | G5: 5 | H5: 6 | I5: 7 | J5: 8 | K5: 9 | L5: 10 | M5: 11 | N5: 12 | O5: 13 | P5: 14 | Q5: 15 | R5: 16 | S5: 17 | T5: 18 | U5: 19 | V5: 20 | W5: 21 | X5: 22 | Y5: 23
B6: Русский язык ХВЮ | C6: 1 | D6: 1 | E6: 1 | F6: 1 | G6: 1 | H6: 1 | I6: 1 | J6: 1 | K6: 1 | L6: 1 | M6: 1 | N6: 1 | O6: 1 | P6: 1 | Q6: 1 | R6: 1 | S6: 1 | T6: 1 | U6: 1 | V6: 1 | W6: 1 | X6: 1 | Z6: =SUM(C6:Y6) -> 22
B7: Литература ХВЮ | C7: 3 | D7: 3 | E7: 3 | F7: 3 | G7: 3 | H7: 3 | I7: 3 | J7: 3 | K7: 3 | L7: 3 | M7: 3 | N7: 3 | O7: 3 | P7: 3 | Q7: 3 | R7: 3 | S7: 3 | T7: 3 | U7: 3 | V7: 3 | W7: 3 | X7: 3 | Z7: =SUM(C7:Y7) -> 66
B8: История ГЕС | C8: 2 | D8: 2 | E8: 2 | F8: 2 | G8: 2 | H8: 2 | I8: 2 | J8: 2 | K8: 2 | L8: 2 | M8: 2 | N8: 2 | O8: 2 | P8: 2 | Q8: 2 | R8: 2 | S8: 2 | T8: 2 | U8: 2 | V8: 2 | W8: 2 | X8: 2 | Z8: 44
B9: Иностранный язык, ФГФ | C9: 1 | D9: 1 | E9: 1 | F9: 1 | G9: 1 | H9: 1 | I9: 1 | J9: 1 | K9: 1 | L9: 1 | M9: 1 | N9: 1 | O9: 1 | P9: 1 | Q9: 1 | R9: 1 | S9: 1 | T9: 1 | U9: 1 | V9: 1 | W9: 1 | X9: 1 | Y9: 1 | Z9: 23
B10: Иностранный язык, ВГЗ | Z10: 0
B11: Физическая культура ВЛФ | C11: 2 | D11: 2 | E11: 2 | F11: 2 | G11: 2 | H11: 2 | I11: 2 | J11: 2 | K11: 2 | L11: 2 | M11: 2 | N11: 2 | O11: 2 | P11: 2 | Q11: 2 | R11: 2 | S11: 2 | T11: 2 | U11: 2 | V11: 2 | W11: 2 | X11: 2 | Y11: 2 | Z11: 46
B12: Язык и культура тат. ХГМ | C12: 1 | D12: 1 | E12: 1 | F12: 1 | G12: 1 | H12: 1 | I12: 1 | J12: 1 | K12: 1 | L12: 1 | M12: 1 | N12: 1 | O12: 1 | P12: 1 | Q12: 1 | R12: 1 | S12: 1 | T12: 1 | U12: 1 | V12: 1 | W12: 1 | X12: 1 | Y12: 1 | Z12: 23
B13: Математика ККВ | C13: 1 | D13: 1 | E13: 1 | F13: 1 | G13: 1 | H13: 1 | I13: 1 | J13: 1 | K13: 1 | L13: 1 | M13: 1 | N13: 1 | O13: 1 | P13: 1 | Q13: 1 | R13: 1 | S13: 1 | T13: 1 | U13: 1 | V13: 1 | W13: 2 | X13: 2 | Y13: 2 | Z13: 26
B14: ИКТ, 1 гр АНВ | C14: 2 | D14: 2 | E14: 2 | F14: 2 | G14: 2 | H14: 2 | I14: 2 | J14: 2 | K14: 2 | L14: 2 | M14: 2 | N14: 2 | O14: 2 | P14: 2 | Q14: 2 | R14: 2 | S14: 2 | T14: 2 | U14: 2 | V14: 2 | W14: 2 | X14: 2 | Y14: 2 | Z14: 46
B15: ИКТ, 2 гр АНВ | Z15: 0
B16: Педагогика ГГМ | C16: 2 | D16: 2 | E16: 2 | F16: 2 | G16: 2 | H16: 2 | I16: 2 | J16: 2 | K16: 2 | L16: 2 | M16: 2 | N16: 2 | O16: 2 | P16: 2 | Q16: 2 | R16: 2 | S16: 2 | T16: 2 | U16: 2 | V16: 2 | W16: 2 | X16: 2 | Y16: 2 | Z16: 46
B17: Психология ГЛР | C17: 2 | D17: 2 | E17: 2 | F17: 2 | G17: 2 | H17: 2 | I17: 2 | J17: 2 | K17: 2 | L17: 2 | M17: 2 | N17: 2 | O17: 2 | P17: 2 | Q17: 2 | R17: 2 | S17: 2 | T17: 2 | U17: 2 | V17: 2 | W17: 2 | X17: 2 | Y17: 2 | Z17: 46
B18: Анатомия МММ | C18: 2 | D18: 2 | E18: 2 | F18: 2 | G18: 2 | H18: 2 | I18: 2 | J18: 2 | K18: 2 | L18: 2 | M18: 2 | N18: 2 | O18: 2 | P18: 2 | Q18: 2 | R18: 2 | S18: 2 | T18: 2 | U18: 2 | V18: 2 | W18: 1 | X18: 1 | Z18: 42
B19: ОМГ, 1 гр ГФА | C19: 1 | D19: 1 | E19: 1 | F19: 1 | G19: 1 | H19: 1 | I19: 1 | J19: 1 | K19: 1 | L19: 1 | M19: 1 | N19: 1 | O19: 1 | P19: 1 | Q19: 1 | R19: 1 | S19: 1 | T19: 1 | U19: 1 | V19: 1 | W19: 1 | X19: 1 | Y19: 1 | Z19: 23
B20: ОМГ, 2 гр | Z20: 0
B21: ОИГ, 1 гр. АСВ | C21: 1 | D21: 1 | E21: 1 | F21: 1 | G21: 1 | H21: 1 | I21: 1 | J21: 1 | K21: 1 | L21: 1 | M21: 1 | N21: 1 | O21: 1 | P21: 1 | Q21: 1 | R21: 1 | S21: 1 | T21: 1 | U21: 1 | V21: 1 | W21: 1 | X21: 1 | Y21: 1 | Z21: 23
B22: ОИГ, 2 гр. | Z22: 0
B23: ХОМ, 1 гр ШАА | C23: 2 | D23: 2 | E23: 2 | F23: 2 | G23: 2 | H23: 2 | I23: 2 | J23: 2 | K23: 2 | L23: 2 | M23: 2 | N23: 2 | O23: 2 | P23: 2 | Q23: 2 | R23: 2 | S23: 2 | T23: 2 | U23: 2 | V23: 2 | W23: 2 | X23: 2 | Y23: 2 | Z23: 46
B24: ХОМ, 2 гр | Z24: 0
B25: МДК.01.01. СРФ | C25: 2 | D25: 2 | E25: 2 | F25: 2 | G25: 2 | H25: 2 | I25: 2 | J25: 2 | K25: 2 | L25: 2 | M25: 2 | N25: 2 | O25: 2 | P25: 2 | Q25: 2 | R25: 2 | S25: 2 | T25: 2 | U25: 2 | V25: 2 | W25: 2 | X25: 2 | Y25: 2 | Z25: 46
B26: МДК.01.06 ШАА | C26: 1 | D26: 1 | E26: 1 | F26: 1 | G26: 1 | H26: 1 | I26: 1 | J26: 1 | K26: 1 | L26: 1 | M26: 1 | N26: 1 | O26: 1 | P26: 1 | Q26: 1 | R26: 1 | S26: 1 | T26: 1 | U26: 1 | V26: 1 | W26: 1 | X26: 1 | Y26: 1 | Z26: 23
B27: МДК.01.07 ВЛФ | C27: 1 | D27: 1 | E27: 1 | F27: 1 | G27: 1 | H27: 1 | I27: 1 | J27: 1 | K27: 1 | L27: 1 | M27: 1 | N27: 1 | O27: 1 | P27: 1 | Q27: 1 | R27: 1 | S27: 1 | T27: 1 | U27: 1 | V27: 1 | W27: 1 | X27: 1 | Y27: 1 | Z27: 23
B28: МДК.01.08. ВАР | C28: 1 | D28: 1 | E28: 1 | F28: 1 | G28: 1 | H28: 1 | I28: 1 | J28: 1 | K28: 1 | L28: 1 | M28: 1 | N28: 1 | O28: 1 | P28: 1 | Q28: 1 | R28: 1 | S28: 1 | T28: 1 | U28: 1 | V28: 1 | W28: 1 | X28: 1 | Y28: 1 | Z28: 23
B29: МДК.02.01. ШАА | C29: 1 | D29: 1 | E29: 1 | F29: 1 | G29: 1 | H29: 1 | I29: 1 | J29: 1 | K29: 1 | L29: 1 | M29: 1 | N29: 1 | O29: 1 | P29: 1 | Q29: 1 | R29: 1 | S29: 1 | T29: 1 | U29: 1 | V29: 1 | W29: 1 | X29: 1 | Y29: 1 | Z29: 23
B30: МДК.02.01. 1 гр ШАА | C30: 1 | D30: 1 | E30: 1 | F30: 1 | G30: 1 | H30: 1 | I30: 1 | J30: 1 | K30: 1 | L30: 1 | M30: 1 | N30: 1 | O30: 1 | P30: 1 | Q30: 1 | R30: 1 | S30: 1 | T30: 1 | U30: 1 | V30: 1 | W30: 1 | X30: 1 | Y30: 1 | Z30: 23
B31: МДК.02.01. 2 гр | Z31: 0
B32: МДК.02.02.1 гр ШАА | C32: 1 | D32: 1 | E32: 1 | F32: 1 | G32: 1 | H32: 1 | I32: 1 | J32: 1 | K32: 1 | L32: 1 | M32: 1 | N32: 1 | O32: 1 | P32: 1 | Q32: 1 | R32: 1 | S32: 1 | T32: 1 | U32: 1 | V32: 1 | W32: 1 | X32: 1 | Y32: 5 | Z32: 27
B33: МДК.02.02.2 гр | Z33: 0
B34: МДК.03.01. ХГФ | C34: 2 | D34: 2 | E34: 2 | F34: 2 | G34: 2 | H34: 2 | I34: 2 | J34: 2 | K34: 2 | L34: 2 | M34: 2 | N34: 2 | O34: 2 | P34: 2 | Q34: 2 | R34: 2 | S34: 2 | T34: 2 | U34: 2 | V34: 2 | W34: 2 | X34: 2 | Y34: 2 | Z34: 46
B35: УП.02. ШАА | C35: 3 | D35: 3 | E35: 3 | F35: 3 | G35: 3 | H35: 3 | I35: 3 | J35: 3 | K35: 3 | L35: 3 | M35: 3 | N35: 3 | Z35: 36
B36: УП.02. | Z36: 0
B37: УП.03.01 1 гр ХГФ | O37: 3 | P37: 3 | Q37: 3 | R37: 3 | S37: 3 | T37: 3 | U37: 3 | V37: 3 | W37: 3 | X37: 3 | Y37: 6 | Z37: 36
B38: УП.03.01 2 гр | Z38: 0
C39: =SUM(C6:C38) -> 36 | D39: =SUM(D6:D38) -> 36 | E39: 36 | F39: 36 | G39: 36 | H39: 36 | I39: 36 | J39: 36 | K39: 36 | L39: 36 | M39: 36 | N39: 36 | O39: 36 | P39: 36 | Q39: 36 | R39: 36 | S39: 36 | T39: 36 | U39: 36 | V39: 36 | W39: 36 | X39: 36 | Y39: =SUM(Y6:Y38) -> 36 | Z39: =SUM(Z6:Z38) -> 828

Sheet 3 к 5 с
A3: КАЛЕНДАРНЫЙ УЧЕБНЫЙ ГРАФИК, 2022-2023 учебный год, кл.рук. Андреева Н.В.
A4: 44.02.02 Преподавание в начальных классах, 3 курс 5 семестр - 19
B6: 2022-09-01 | C6: 2022-09-08 | D6: 2022-09-15 | E6: 2022-09-22 | F6: 2022-09-29 | G6: 2022-10-06 | H6: 2022-10-13 | I6: 2022-10-20 | J6: 2022-10-27 | K6: 2022-11-03 | L6: 2022-11-10 | M6: 2022-11-17 | N6: 2022-11-24 | O6: 2022-12-01 | P6: 2022-12-08 | Q6: 2022-12-15 | R6: всего часов | S6: к оплате 1 семестр | T6: к оплате 2 семестр
A7: дисциплины/недели | B7: 1 | C7: 2 | D7: 3 | E7: 4 | F7: 5 | G7: 6 | H7: 7 | I7: 8 | J7: 9 | K7: 10 | L7: 11 | M7: 12 | N7: 13 | O7: 14 | P7: 15 | Q7: 16
A8: Иностранный язык, 1 гр ВГЗ | B8: УП.03.02 | C8: 2 | D8: 2 | E8: 2 | F8: 2 | G8: 2 | H8: 2 | I8: 2 | J8: 2 | K8: 2 | L8: 2 | M8: 3 | N8: 3 | O8: УП.01 | P8: 2 | Q8: 2 | R8: 30 | S8: 30 | T8: 42
A9: Физическая культура ВЛФ | C9: 2 | D9: 2 | E9: 2 | F9: 2 | G9: 2 | H9: 2 | I9: 2 | J9: 2 | K9: 2 | L9: 2 | M9: 2 | N9: 2 | P9: 3 | Q9: 3 | R9: 30 | S9: 30 | T9: 42
A10: Язык и культура татарстана ХГМ | C10: 2 | D10: 2 | E10: 2 | F10: 2 | G10: 2 | H10: 2 | I10: 2 | J10: 2 | K10: 2 | L10: 2 | M10: 1 | R10: 21 | S10: 21
A11: Педагогика ГГМ | C11: 2 | D11: 2 | E11: 2 | F11: 2 | G11: 2 | H11: 2 | I11: 2 | J11: 2 | K11: 2 | L11: 2 | M11: 2 | N11: 3 | P11: 2 | Q11: 3 | R11: 30 | S11: 30
A12: ППП 1 гр, ЮЕА | C12: 2 | D12: 2 | E12: 2 | F12: 2 | G12: 2 | H12: 2 | I12: 2 | J12: 2 | K12: 2 | L12: 2 | M12: 2 | N12: 2 | P12: 4 | Q12: 4 | R12: 32 | S12: 32
A13: ППП 2 гр, ЮЕА | R13: 0 | S13: 32
A14: МДК.01.03 СРФ | C14: 2 | D14: 2 | E14: 2 | F14: 2 | G14: 2 | H14: 2 | I14: 2 | J14: 2 | K14: 2 | L14: 2 | M14: 2 | N14: 2 | P14: 2 | Q14: 2 | R14: 28 | S14: 28 | T14: 120
A15: МДК 01.06 ШАА | C15: 2 | D15: 2 | E15: 2 | F15: 2 | G15: 2 | H15: 2 | I15: 2 | J15: 2 | K15: 2 | L15: 2 | M15: 2 | N15: 2 | P15: 2 | Q15: 2 | R15: 28 | S15: 28
A16: МДК 01.06 ШАА | C16: 2 | D16: 2 | E16: 2 | F16: 2 | G16: 2 | H16: 2 | I16: 2 | J16: 2 | K16: 2 | L16: 2 | M16: 2 | N16: 2 | P16: 2 | Q16: 2 | R16: 28 | S16: 28 | T16: 40
A17: МДК 01.06 ШАА | R17: 0 | S17: 28 | T17: 40
A18: МДК.01.07, 1 гр ВЛФ | C18: 2 | D18: 2 | E18: 2 | F18: 2 | G18: 2 | H18: 2 | I18: 2 | J18: 2 | K18: 2 | L18: 2 | M18: 2 | N18: 2 | P18: 2 | Q18: 2 | R18: 28 | S18: 28
A19: МДК.01.07, 2 гр ВЛФ | R19: 0 | S19: 28
A20: МДК.01.08, 1 гр ВАР | C20: 2 | D20: 2 | E20: 2 | F20: 2 | G20: 2 | H20: 2 | I20: 2 | J20: 2 | K20: 2 | L20: 2 | M20: 2 | N20: 2 | P20: 2 | Q20: 2 | R20: 28 | S20: 28
A21: МДК.01.08, 2 гр ВАР | R21: 0 | S21: 28
A22: МДК.02.01. 1 гр ШАА | E22: 1 | F22: 1 | G22: 1 | H22: 1 | I22: 1 | J22: 1 | K22: 1 | L22: 1 | M22: 1 | N22: 1 | P22: 2 | Q22: 2 | R22: 14 | S22: 14
A23: МДК.02.01. 2гр ШАА | R23: 0 | S23: 14
A24: МДК.02.02. ШАА | C24: 2 | D24: 2 | E24: 1 | R24: 5 | S24: 5
A25: МДК.02.02. 1 гр ШАА | C25: 2 | D25: 2 | E25: 2 | F25: 2 | G25: 2 | H25: 2 | I25: 2 | J25: 2 | K25: 2 | L25: 2 | M25: 2 | N25: 2 | P25: 2 | Q25: 2 | R25: 28 | S25: 28
A26: МДК.02.02. 2 гр ШАА | R26: 0 | S26: 28
A27: МДК.03.01. 1 гр ХГФ | C27: 2 | D27: 2 | E27: 2 | F27: 2 | G27: 2 | H27: 2 | I27: 2 | J27: 2 | K27: 2 | L27: 2 | M27: 2 | N27: 2 | P27: 3 | Q27: 3 | R27: 30 | S27: 30
A28: МДК.03.01. 2 гр ХГФ | R28: 0 | S28: 30
A29: ПП.02 | C29: 5 | D29: 5 | E29: 5 | F29: 6 | G29: 6 | H29: 6 | I29: 6 | J29: 6 | K29: 6 | L29: 6 | M29: 5 | N29: 5 | P29: 3 | Q29: 2 | R29: 72 | S29: 336
A30: ПП.03.01 | C30: 5 | D30: 5 | E30: 5 | F30: 5 | G30: 5 | H30: 5 | I30: 5 | J30: 5 | K30: 5 | L30: 5 | M30: 6 | N30: 6 | P30: 5 | Q30: 5 | R30: 72 | S30: 189
A31: УП.03.02 | B31: 36 | R31: 36 | S31: 80
A32: УП.01 | O32: 36 | R32: 36 | S32: 36 | T32: 36 | U32: мдк 03.01 | V32: 36
B33: =SUM(B8:B32) -> 36 | C33: =SUM(C8:C30) -> 36 | D33: =SUM(D8:D30) -> 36 | E33: 36 | F33: 36 | G33: 36 | H33: 36 | I33: 36 | J33: 36 | K33: 36 | L33: 36 | M33: 36 | N33: 36 | O33: =SUM(O8:O32) -> 36 | P33: 36 | Q33: 36 | R33: =SUM(R8:R32) -> 576 | S33: =SUM(S8:S32) -> 1189 | T33: =SUM(T8:T32) -> 320 | U33: история - | V33: 48
U34: ТДЛ - | V34: 39
U35: 01.02 - | V35: 105
U36: 01,04 - | V36: 140
U37: 01.05 - | V37: 140
U38: ПП.03.02 | V38: 63
U39: ПП.01 - | V39: 504
V40: =SUM(V32:V39) -> 1075
T41: =SUM(T33+V40) -> 1395
S43: =SUM(S33+T41) -> 2584

Sheet 3 к 6 с
B1: КАЛЕНДАРНЫЙ УЧЕБНЫЙ ГРАФИК, 2022-2023 учебный год, кл.рук.Андреева Н.В.
B2: 44.02.02. Преподавание в начальных классах, 3 курс 6 семестр
C3: 2023-01-12 | D3: 2023-01-19 | E3: 2023-01-26 | F3: 2023-02-02 | G3: 2023-02-09 | H3: 2023-02-16 | I3: 2023-02-23 | J3: 2023-03-02 | K3: 2023-03-09 | L3: 2023-03-16 | M3: 2023-03-23 | N3: 2023-03-30 | O3: 2023-04-06 | P3: 2023-04-13 | Q3: 2023-04-20 | R3: 2023-04-27 | S3: 2023-05-04 | T3: 2023-05-11 | U3: 2023-05-18 | V3: 2023-05-25 | W3: 2023-06-01 | X3: 2023-06-22 | Y3: всего часов
B4: дисциплины/недели | C4: 1 | D4: 2 | E4: 3 | F4: 4 | G4: 5 | H4: 6 | I4: 7 | J4: 8 | K4: 9 | L4: 10 | M4: 11 | N4: 12 | O4: 13 | P4: 14 | Q4: 15 | R4: 16 | S4: 17 | T4: 18 | U4: 19 | V4: 20 | W4: 21-23 | X4: 24
B5: История КНГ | C5: 2 | D5: 2 | E5: 2 | F5: 2 | G5: 2 | H5: 2 | I5: 2 | J5: 2 | K5: 2 | L5: 2 | M5: 2 | N5: 2 | O5: 2 | P5: 2 | Q5: УП.01 | R5: 2 | S5: 2 | T5: 2 | U5: 2 | V5: 6 | W5: ПП.03.02 | X5: 6 | Y5: =SUM(R5+S5+T5+U5+V5+X5+P5+O5+N5+M5+L5+K5+J5+I5+H5+G5+F5+E5+D5+C5) -> 48 | Z5: 48
B6: Иностранный язык, 1 гр ВГЗ | C6: 2 | D6: 2 | E6: 2 | F6: 2 | G6: 2 | H6: 2 | I6: 2 | J6: 2 | K6: 2 | L6: 2 | M6: 2 | N6: 2 | O6: 2 | P6: 2 | R6: 2 | S6: 2 | T6: 2 | U6: 2 | V6: 4 | X6: 2 | Y6: =SUM(R6+S6+T6+U6+V6+X6+P6+O6+N6+M6+L6+K6+J6+I6+H6+G6+F6+E6+D6+C6) -> 42 | Z6: 42
B7: Физическая культура ВЛФ | C7: 2 | D7: 2 | E7: 2 | F7: 2 | G7: 2 | H7: 2 | I7: 2 | J7: 2 | K7: 2 | L7: 2 | M7: 2 | N7: 2 | O7: 2 | P7: 2 | R7: 2 | S7: 2 | T7: 2 | U7: 2 | V7: 2 | X7: 4 | Y7: 42 | Z7: 42
B8: Тат. Дет. Лит-ра, ШГМ | C8: 2 | D8: 2 | E8: 2 | F8: 2 | G8: 2 | H8: 2 | I8: 2 | J8: 2 | K8: 2 | L8: 2 | M8: 2 | N8: 2 | O8: 2 | P8: 2 | R8: 2 | S8: 2 | T8: 2 | U8: 2 | V8: 2 | X8: 1 | Y8: 39 | Z8: 39
B9: МДК.01.02. НВЮ | C9: 3 | D9: 3 | E9: 3 | F9: 3 | G9: 3 | H9: 3 | I9: 3 | J9: 3 | K9: 3 | L9: 3 | M9: 3 | N9: 3 | O9: 3 | P9: 3 | R9: 3 | S9: 4 | T9: 4 | U9: 4 | V9: 4 | X9: 4 | Y9: 65 | Z9: 65
B10: МДК.01.02. 1 гр. НВЮ | C10: 1 | D10: 1 | E10: 1 | F10: 1 | G10: 1 | H10: 1 | I10: 1 | J10: 1 | K10: 1 | L10: 1 | M10: 1 | N10: 1 | O10: 1 | P10: 1 | R10: 1 | S10: 1 | T10: 1 | U10: 1 | V10: 1 | X10: 1 | Y10: 20 | Z10: 20
B11: МДК.01.02. 2 гр. | Y11: 0 | Z11: 20
B12: МДК.01.03 СРФ | C12: 2 | D12: 2 | E12: 2 | F12: 2 | G12: 2 | H12: 2 | I12: 2 | J12: 2 | K12: 2 | L12: 2 | M12: 2 | N12: 2 | O12: 2 | P12: 2 | R12: 2 | S12: 2 | T12: 2 | U12: 2 | V12: 2 | X12: 2 | Y12: 40 | Z12: 40
B13: МДК.01.03 1гр. СРФ | C13: 2 | D13: 2 | E13: 2 | F13: 2 | G13: 2 | H13: 2 | I13: 2 | J13: 2 | K13: 2 | L13: 2 | M13: 2 | N13: 2 | O13: 2 | P13: 2 | R13: 2 | S13: 2 | T13: 2 | U13: 2 | V13: 2 | X13: 2 | Y13: 40 | Z13: 40
B14: МДК.01.03 2 гр. | Y14: 0 | Z14: 40
B15: МДК.01.04. СРФ | C15: 3 | D15: 3 | E15: 3 | F15: 3 | G15: 3 | H15: 3 | I15: 3 | J15: 3 | K15: 3 | L15: 3 | M15: 3 | N15: 3 | O15: 3 | P15: 3 | R15: 3 | S15: 3 | T15: 3 | U15: 3 | V15: 3 | X15: 3 | Y15: 60 | Z15: 60
B16: МДК.01.04. 1 гр СРФ | C16: 2 | D16: 2 | E16: 2 | F16: 2 | G16: 2 | H16: 2 | I16: 2 | J16: 2 | K16: 2 | L16: 2 | M16: 2 | N16: 2 | O16: 2 | P16: 2 | R16: 2 | S16: 2 | T16: 2 | U16: 2 | V16: 2 | X16: 2 | Y16: 40 | Z16: 40
B17: МДК.01.04. 2 гр. | Y17: 0 | Z17: 40
B18: МДК.01.05 ГХХ | C18: 3 | D18: 3 | E18: 3 | F18: 3 | G18: 3 | H18: 3 | I18: 3 | J18: 3 | K18: 3 | L18: 3 | M18: 3 | N18: 3 | O18: 3 | P18: 3 | R18: 3 | S18: 3 | T18: 3 | U18: 3 | V18: 3 | X18: 3 | Y18: 60 | Z18: 60
B19: МДК.01.05 1 гр. ГХХ | C19: 2 | D19: 2 | E19: 2 | F19: 2 | G19: 2 | H19: 2 | I19: 2 | J19: 2 | K19: 2 | L19: 2 | M19: 2 | N19: 2 | O19: 2 | P19: 2 | R19: 2 | S19: 2 | T19: 2 | U19: 2 | V19: 2 | X19: 2 | Y19: 40 | Z19: 40
B20: МДК.01.05 2 гр. | Y20: 0 | Z20: 40
B21: МДК.01.06 1 гр. ШАА | C21: 2 | D21: 2 | E21: 2 | F21: 2 | G21: 2 | H21: 2 | I21: 2 | J21: 2 | K21: 2 | L21: 2 | M21: 2 | N21: 2 | O21: 2 | P21: 2 | R21: 2 | S21: 2 | T21: 2 | U21: 2 | V21: 2 | X21: 2 | Y21: 40 | Z21: 40
B22: МДК.01.06 2 гр. | Y22: 0 | Z22: 40
B23: МДК.03.01. ЗЛИ | C23: 2 | D23: 2 | E23: 2 | F23: 2 | G23: 2 | H23: 2 | I23: 2 | J23: 2 | K23: 2 | L23: 2 | M23: 2 | N23: 2 | O23: 2 | P23: 2 | R23: 2 | S23: 1 | T23: 1 | U23: 1 | V23: 1 | X23: 2 | Y23: 36 | Z23: 36
B24: ПП.01 | C24: 6 | D24: 6 | E24: 6 | F24: 6 | G24: 6 | H24: 6 | I24: 6 | J24: 6 | K24: 6 | L24: 6 | M24: 6 | N24: 6 | O24: 6 | P24: 6 | R24: 6 | S24: 6 | T24: 6 | U24: 6 | Y24: 108 | Z24: 504
C25: =SUM(C5:C24) -> 36 | D25: 36 | E25: 36 | F25: 36 | G25: 36 | H25: 36 | I25: 36 | J25: 36 | K25: 36 | L25: 36 | M25: 36 | N25: 36 | O25: 36 | P25: 36 | R25: =SUM(R5:R24) -> 36 | S25: 36 | T25: 36 | U25: 36 | V25: 36 | X25: 36
B26: ПП.03.02 (лагеря) | C26: С 1.06 по 21.06 | Y26: 108 | Z26: 63
Y28: =SUM(Y5:Y26) -> 828 | Z28: =SUM(Z5:Z26) -> 1359

Sheet 4 к 7 с
A1: КАЛЕНДАРНЫЙ УЧЕБНЫЙ ГРАФИК, 2023-2024 учебный год, кл.рук. Хайруллина Г.Ф. - 21 человек
A2: 44.02.02 Преподавание в начальных классах, 4 курс 7 семестр
B3: 2023-09-01 | C3: 2023-09-08 | D3: 2023-09-15 | E3: 2023-09-22 | F3: 2023-09-29 | G3: 2023-10-06 | H3: 2023-10-13 | I3: 2023-10-20 | J3: 2023-10-27 | K3: 2023-11-03 | L3: 2023-11-10 | M3: 2023-11-17 | N3: 2023-11-24 | O3: 2023-12-01 | P3: 2023-12-08 | Q3: 2023-12-15 | R3: всего часов | S3: к оплате 1 семестр | T3: к оплате 2 семестр
A4: дисциплины/недели | B4: 1 | C4: 2 | D4: 3 | E4: 4 | F4: 5 | G4: 6 | H4: 7 | I4: 8 | J4: 9 | K4: 10 | L4: 11 | M4: 12 | N4: 13 | O4: 14 | P4: 15 | Q4: 16
A5: Основы философии | B5: 3 | C5: 3 | D5: 3 | E5: 3 | F5: 3 | G5: 3 | H5: 3 | I5: 3 | J5: 3 | K5: 3 | L5: 3 | M5: 3 | N5: 3 | O5: 3 | P5: 3 | Q5: 3 | R5: =SUM(B5:Q5) -> 48 | S5: 48
A6: Иностранный язык, 1 гр. | B6: 1 | C6: 1 | D6: 1 | E6: 1 | F6: 1 | G6: 1 | H6: 1 | I6: 1 | J6: 1 | K6: 1 | L6: 1 | M6: 1 | N6: 1 | O6: 1 | P6: 1 | Q6: 1 | R6: =SUM(B6:Q6) -> 16 | S6: 16 | T6: 29
A7: Иностранный язык, 2 гр. | R7: 0 | S7: 16 | T7: 29
A8: Физическая культура | B8: 2 | C8: 2 | D8: 2 | E8: 2 | F8: 2 | G8: 2 | H8: 2 | I8: 2 | J8: 2 | K8: 2 | L8: 2 | M8: 2 | N8: 2 | O8: 2 | P8: 2 | Q8: 2 | R8: 32 | S8: 32 | T8: 26
A9: Татарская детская литература, | B9: 2 | C9: 2 | D9: 2 | E9: 2 | F9: 2 | G9: 2 | H9: 2 | I9: 2 | J9: 2 | K9: 2 | L9: 2 | M9: 2 | N9: 2 | O9: 2 | P9: 2 | Q9: 2 | R9: 32 | S9: 32
A10: Безопасность жизнедеятельности | B10: 2 | C10: 2 | D10: 2 | E10: 2 | F10: 2 | G10: 2 | H10: 2 | I10: 2 | J10: 2 | K10: 2 | L10: 2 | M10: 2 | N10: 4 | O10: 4 | P10: 4 | Q10: 4 | R10: 40 | S10: 40 | T10: 28
A11: Основы учебно-исследовательской деятельности | B11: 2 | C11: 2 | D11: 2 | E11: 2 | F11: 2 | G11: 2 | H11: 2 | I11: 2 | J11: 2 | K11: 2 | L11: 2 | M11: 2 | N11: 2 | O11: 2 | P11: 2 | Q11: 2 | R11: 32 | S11: 32
A12: МДК.01.02. Русский язык с методикой преподавания | B12: 3 | C12: 3 | D12: 3 | E12: 3 | F12: 3 | G12: 3 | H12: 3 | I12: 3 | J12: 3 | K12: 3 | L12: 3 | M12: 3 | N12: 3 | O12: 3 | P12: 3 | Q12: 1 | R12: 46 | S12: 46 | T12: 21
A13: МДК.01.02. Русский язык с методикой преподавания, 1 гр | B13: 2 | C13: 2 | D13: 2 | E13: 2 | F13: 2 | G13: 2 | H13: 2 | I13: 2 | J13: 2 | K13: 2 | L13: 2 | M13: 2 | N13: 2 | O13: 2 | P13: 2 | Q13: 2 | R13: 32 | S13: 32 | T13: 21
A14: МДК.01.02. Русский язык с методикой преподавания, 2 гр | R14: 0 | S14: 32 | T14: 21
A15: МДК.01.03 Детская литература с практикумом по выразительному чтению, 1 гр | B15: 1 | C15: 1 | D15: 1 | E15: 1 | F15: 1 | G15: 1 | H15: 1 | I15: 1 | J15: 1 | K15: 1 | L15: 1 | M15: 1 | N15: 1 | O15: 1 | P15: 1 | Q15: 1 | R15: 16 | S15: 16
A16: МДК.01.03 Детская литература с практикумом по выразительному чтению, 2 гр | R16: 0 | S16: 16
A17: МДК.01.04. Теоретические основы начального курса математики с методикой преподавания | B17: 3 | C17: 3 | D17: 3 | E17: 3 | F17: 3 | G17: 3 | H17: 2 | I17: 2 | J17: 2 | K17: 2 | L17: 2 | M17: 2 | N17: 2 | O17: 2 | P17: 2 | Q17: 2 | R17: 38 | S17: 38 | T17: 26
A18: МДК.01.04. Теоретические основы начального курса математики с методикой преподавания,1 гр | B18: 2 | C18: 2 | D18: 2 | E18: 2 | F18: 2 | G18: 2 | H18: 2 | I18: 2 | J18: 2 | K18: 2 | L18: 2 | M18: 2 | N18: 2 | O18: 2 | P18: 2 | Q18: 2 | R18: 32 | S18: 32 | T18: 13
A19: МДК.01.04. Теоретические основы начального курса математики с методикой преподавания 2 гр | R19: 0 | S19: 32 | T19: 13
A20: МДК.01.05 Естествознание с методикой преподавания | B20: 2 | C20: 2 | D20: 2 | E20: 2 | F20: 2 | G20: 2 | H20: 2 | I20: 2 | J20: 2 | K20: 2 | R20: 20 | S20: 20
A21: МДК.01.05 Естествознание с методикой преподавания, 1 гр. | H21: 1 | I21: 1 | J21: 1 | K21: 1 | L21: 3 | M21: 3 | N21: 3 | O21: 3 | P21: 3 | Q21: 1 | R21: 20 | S21: 20
A22: МДК.01.05 Естествознание с методикой преподавания, 2 гр. | R22: 0 | S22: 20
A23: МДК.04.01 Теоретические и прикладные аспекты методической работы учителя начальных классов | B23: 4 | C23: 4 | D23: 4 | E23: 4 | F23: 4 | G23: 4 | H23: 4 | I23: 4 | J23: 4 | K23: 4 | L23: 4 | M23: 4 | N23: 4 | O23: 4 | P23: 4 | Q23: 4 | R23: 64 | S23: 64 | T23: 104
A24: ПП.01 | B24: 7 | C24: 7 | D24: 7 | E24: 7 | F24: 7 | G24: 7 | H24: 7 | I24: 7 | J24: 7 | K24: 7 | L24: 7 | M24: 7 | N24: 5 | O24: 5 | P24: 5 | Q24: 9 | R24: 108
B25: =SUM(B5:B24) -> 36 | C25: =SUM(C5:C24) -> 36 | D25: 36 | E25: 36 | F25: 36 | G25: 36 | H25: 36 | I25: 36 | J25: 36 | K25: 36 | L25: 36 | M25: 36 | N25: 36 | O25: 36 | P25: 36 | Q25: 36 | R25: =SUM(R5:R24) -> 576 | S25: =SUM(S5:S24) -> 584 | T25: =SUM(T5:T24) -> 331 | U25: ПОПД | V25: 36
U26: менедж | V26: 36
U27: УП.04 | V27: 72
U28: ПП.04 | V28: 72
U29: предди
T30: =SUM(T25+V30) -> 547 | V30: =SUM(V25:V29) -> 216
S32: =SUM(S25+T30) -> 1131
